Workbook

Sheet Quadro RESUMO
A5: Prestação de serviços continuados de vigilância armada, visando à segurança das obras civis, das instalações dos canteiros de obras e dos equipamentos hidromecânicos e eletromecânicos do Eixo Norte do PISF – Projeto de Integração do rio São Francisco com as bacias hidrográficas do nordeste setentrional, com área de atuação no estado de Pernambuco, Paraíba, Ceará e Rio Grande do Norte
A11: ANEXO I - A: QUADRO RESUMO DE FORMAÇÃO DE PREÇOS
A14: Tipo de Serviço: | B14: Posto Fixo de 24 (vinte e quatro) horas diárias, inclusive aos sábados, domingos e feriados, envolvendo 4 (quatro) vigilantes em turnos revezados de 12 (doze) x 36 (trinta e seis) horas.
A16: ANO | B16: Valor proposto por empregado | C16: Quant. de empregados por posto | D16: Valor proposto por posto | E16: Quant. de postos | F16: Valor total do serviço MENSAL
B17: ( A ) | C17: ( B ) | D17: ( C ) | E17: ( D ) | F17: (E = C x D)
A18: PARAÍBA - 2020 | B18: =ROUND(D18/C18,2) -> 4778.08 | C18: 4 | D18: ='Posto Fixo 24h - Paraíba'!E95 -> 19112.31 | E18: 7 | F18: =D18*E18 -> 133786.17
A19: CEARÁ - 2020 | B19: =ROUND(D19/C19,2) -> 5730.33 | C19: 4 | D19: ='Posto Fixo 24h - Ceará'!E94 -> 22921.33 | E19: 12 | F19: =D19*E19 -> 275055.96
A20: PERNAMBUCO - 2020 | B20: =ROUND(D20/C20,2) -> 5161.46 | C20: 4 | D20: ='Posto Fixo 24h - Pernambuco'!E93 -> 20645.84 | E20: 35 | F20: =D20*E20 -> 722604.4
A23: Discriminação dos Postos | D23: Nº de Postos | E23: Valor do Posto | F23: Valor Mensal
A24: Posto Fixo de 24 (vinte e quatro) horas diárias, inclusive aos sábados, domingos e feriados, envolvendo 4 (quatro) vigilantes em turnos revezados de 12 (doze) x 36 (trinta e seis) horas. - PARAÍBA | D24: =E18 -> 7 | E24: ='Posto Fixo 24h - Paraíba'!E95 -> 19112.31 | F24: =D24*E24 -> 133786.17
A27: Posto Fixo de 24 (vinte e quatro) horas diárias, inclusive aos sábados, domingos e feriados, envolvendo 4 (quatro) vigilantes em turnos revezados de 12 (doze) x 36 (trinta e seis) horas. - CEARÁ | D27: =E19 -> 12 | E27: ='Posto Fixo 24h - Ceará'!E94 -> 22921.33 | F27: =D27*E27 -> 275055.96
A30: Posto Fixo de 24 (vinte e quatro) horas diárias, inclusive aos sábados, domingos e feriados, envolvendo 4 (quatro) vigilantes em turnos revezados de 12 (doze) x 36 (trinta e seis) horas. - PERNAMBUCO | D30: =E20 -> 35 | E30: ='Posto Fixo 24h - Pernambuco'!E93 -> 20645.84 | F30: =D30*E30 -> 722604.4
A33: TOTAL MENSAL: | F33: =SUM(F24:F32) -> 1131446.53
A34: TOTAL 12 MESES: | F34: =SUM(F33*12) -> 13577358.36

Sheet Demanda e Local. - Postos
A4: Prestação de serviços continuados de vigilância armada, visando à segurança das obras civis, das instalações dos canteiros de obras e dos equipamentos hidromecânicos e eletromecânicos do Eixo Norte do PISF – Projeto de Integração do rio São Francisco com as bacias hidrográficas do nordeste setentrional, com área de atuação no estado de Pernambuco, Paraíba, Ceará e Rio Grande do Norte
A9: DEMANDA E LOCALIZAÇÃO DOS POSTOS
A11: EIXO NORTE | F11: EIXO LESTE
A12: Local | B12: Estado | C12: Município | D12: Quant. Necessária de Postos | F12: Local | G12: Estado | H12: Município | I12: Quant. Necessária de Postos
A13: Jati - TUD | B13: Ceará | C13: Jati | D13: 1 | F13: Areias - EC | G13: Pernambuco | H13: Floresta | I13: 1
A14: Jati - Portal CAC | B14: Ceará | C14: Jati | D14: 1 | F14: Areias - TUD | G14: Pernambuco | H14: Floresta | I14: 1
A15: Atalho - TUD | B15: Ceará | C15: Jati | D15: 1 | F15: Braúnas - EC | G15: Pernambuco | H15: Floresta | I15: 1
A16: Porcos - EC | B16: Ceará | C16: Brejo Santo | D16: 1 | F16: Braúnas - TUD | G16: Pernambuco | H16: Floresta | I16: 1
A17: Porcos - TUD | B17: Ceará | C17: Brejo Santo | D17: 1 | F17: Mandantes - TUD | G17: Pernambuco | H17: Floresta | I17: 1
A18: Cana Brava - TUD | B18: Ceará | C18: Brejo Santo | D18: 1 | F18: Salgueiro - EC | G18: Pernambuco | H18: Floresta | I18: 1
A19: Cipó - TUD | B19: Ceará | C19: Brejo Santo | D19: 1 | F19: Salgueiro - TUD | G19: Pernambuco | H19: Floresta | I19: 1
A20: Boi I | B20: Ceará | C20: Brejo Santo | D20: 1 | F20: Muquém - EC | G20: Pernambuco | H20: Floresta | I20: 1
A21: Boi II - EC | B21: Ceará | C21: Brejo Santo | D21: 1 | F21: Muquém - TUD | G21: Pernambuco | H21: Floresta | I21: 1
A22: Canteiro do Lote 02 | B22: Ceará | C22: Penaforte | D22: 1 | F22: Cacimba Nova - TUD | G22: Pernambuco | H22: Custodia | I22: 1
A23: Canteiro Lote 06 | B23: Ceará | C23: Mauriti | D23: 1 | F23: Bagres - EC | G23: Pernambuco | H23: Custodia | I23: 1
A24: EBI-2 | B24: Pernambuco | C24: Cabrobo | D24: 1 | F24: Bagres - TUD | G24: Pernambuco | H24: Custodia | I24: 1
A25: EBI-3 | B25: Pernambuco | C25: Salgueiro | D25: 1 | F25: Copiti - EC | G25: Pernambuco | H25: Custodia | I25: 1
A26: Canteiro Salgueiro - Lote 08 | B26: Pernambuco | C26: Salgueiro | D26: 1 | F26: Copiti - TUD | G26: Pernambuco | H26: Custodia | I26: 1
A27: Tucutu - TUD | B27: Pernambuco | C27: Cabrobo | D27: 1 | F27: Moxotó - TUD | G27: Pernambuco | H27: Sertânia | I27: 1
A28: Terra Nova - TUD | B28: Pernambuco | C28: Cabrobo | D28: 1 | F28: Barreiros - EC | G28: Pernambuco | H28: Sertânia | I28: 1
A29: S. Livramento - EC | B29: Pernambuco | C29: Cabrobo | D29: 1 | F29: Barreiros - TUD | G29: Pernambuco | H29: Sertânia | I29: 1
A30: S. Livramento - TUD | B30: Pernambuco | C30: Cabrobo | D30: 1 | F30: Campos - EC | G30: Pernambuco | H30: Sertânia | I30: 1
A31: Mangueira - TUD | B31: Pernambuco | C31: Salgueiro | D31: 1 | F31: Campos - TUD | G31: Pernambuco | H31: Sertânia | I31: 1
A32: Negreiros - EC | B32: Pernambuco | C32: Salgueiro | D32: 1 | F32: Barro Branco - EC | G32: Pernambuco | H32: Sertânia | I32: 1
A33: Negreiros -TUD | B33: Pernambuco | C33: Salgueiro | D33: 1 | F33: Barro Branco - TUD | G33: Pernambuco | H33: Sertânia | I33: 1
A34: Milagres - EC | B34: Pernambuco | C34: Salgueiro | D34: 1 | F34: Canteiro Custódia - Lote 10 | G34: Pernambuco | H34: Custodia | I34: 1
A35: Milagres - TUD | B35: Pernambuco | C35: Salgueiro | D35: 1 | F35: Monteiro - EC (Último Posto do Eixo Leste) | G35: Paraíba | H35: Monteiro | I35: 1
A36: Canteiro Cabrobó | B36: Pernambuco | C36: Cabrobo | D36: 1 | F36: Total de Postos - Eixo Leste: | I36: =SUM(I13:I35) -> 23
A37: Túnel Cuncas I - emboque - EC | B37: Ceará | C37: Mauriti | D37: 1
A38: Morros - TUD | B38: Paraíba | C38: São Jose de Piranhas | D38: 1
A39: Boa Vista - EC | B39: Paraíba | C39: São Jose de Piranhas | D39: 1
A40: Boa Vista - TUD | B40: Paraíba | C40: São Jose de Piranhas | D40: 1
A41: Caiçara - EC (Último Posto do Eixo Norte) | B41: Paraíba | C41: Cajazeiras | D41: 1
A42: Caiçara - TUD | B42: Paraíba | C42: Cajazeiras | D42: 1
A43: Canteiro São José de Piranhas | B43: Paraíba | C43: São Jose de Piranhas | D43: 1
A44: Total de Postos - Eixo Norte: | D44: =SUM(D13:D43) -> 31

Sheet Grupos - 54 Postos
A4: Prestação de serviços continuados de vigilância armada, visando à segurança das obras civis, das instalações dos canteiros de obras e dos equipamentos hidromecânicos e eletromecânicos do PISF – projeto de integração do rio São Francisco com as bacias hidrográficas do nordeste setentrional, com área de atuação no estado de Pernambuco
A8: Divisão dos Grupos - Demandas
A10: GRUPO | B10: LOCAL | C10: MUNICÍPIO | D10: ESTADO | E10: EIXO | F10: QNT. de Postos | G10: VALOR
G11: Por Posto | H11: Mensal | I11: Anual
A12: GRUPO 01 - Postos Eixo Norte (Pernambuco e Ceará) | B12: Jati - TUD | C12: Jati | D12: Ceará | E12: Norte | F12: 1 | G12: ='Quadro RESUMO'!$D$19 -> 22921.33 | H12: =SUM(G12:G25) -> 314072.15 | I12: =H12*12 -> 3768865.8
B13: Jati - Portal CAC | C13: Jati | D13: Ceará | E13: Norte | F13: 1 | G13: ='Quadro RESUMO'!$D$19 -> 22921.33
B14: Atalho - TUD | C14: Jati | D14: Ceará | E14: Norte | F14: 1 | G14: ='Quadro RESUMO'!$D$19 -> 22921.33
B15: Porcos - EC | C15: Brejo Santo | D15: Ceará | E15: Norte | F15: 1 | G15: ='Quadro RESUMO'!$D$19 -> 22921.33
B16: Porcos - TUD | C16: Brejo Santo | D16: Ceará | E16: Norte | F16: 1 | G16: ='Quadro RESUMO'!$D$19 -> 22921.33
B17: Cana Brava - TUD | C17: Brejo Santo | D17: Ceará | E17: Norte | F17: 1 | G17: ='Quadro RESUMO'!$D$19 -> 22921.33
B18: Cipó - TUD | C18: Brejo Santo | D18: Ceará | E18: Norte | F18: 1 | G18: ='Quadro RESUMO'!$D$19 -> 22921.33
B19: Boi I | C19: Brejo Santo | D19: Ceará | E19: Norte | F19: 1 | G19: ='Quadro RESUMO'!$D$19 -> 22921.33
B20: Boi II - EC | C20: Brejo Santo | D20: Ceará | E20: Norte | F20: 1 | G20: ='Quadro RESUMO'!$D$19 -> 22921.33
B21: Canteiro do Lote 02 | C21: Penaforte | D21: Ceará | E21: Norte | F21: 1 | G21: ='Quadro RESUMO'!$D$19 -> 22921.33
B22: Canteiro Lote 06 | C22: Mauriti | D22: Ceará | E22: Norte | F22: 1 | G22: ='Quadro RESUMO'!$D$19 -> 22921.33
B23: EBI-2 | C23: Cabrobo | D23: Pernambuco | E23: Norte | F23: 1 | G23: ='Quadro RESUMO'!$D$20 -> 20645.84
B24: EBI-3 | C24: Salgueiro | D24: Pernambuco | E24: Norte | F24: 1 | G24: ='Quadro RESUMO'!$D$20 -> 20645.84
B25: Canteiro Salgueiro - Lote 08 | C25: Salgueiro | D25: Pernambuco | E25: Norte | F25: 1 | G25: ='Quadro RESUMO'!D20 -> 20645.84
A26: GRUPO 02 - Postos Eixo Norte (Pernambuco e Ceará) | B26: Tucutu - TUD | C26: Cabrobo | D26: Pernambuco | E26: Norte | F26: 1 | G26: ='Quadro RESUMO'!$D$20 -> 20645.84 | H26: =SUM(G26:G36) -> 229379.73 | I26: =H26*12 -> 2752556.76
B27: Terra Nova - TUD | C27: Cabrobo | D27: Pernambuco | E27: Norte | F27: 1 | G27: ='Quadro RESUMO'!$D$20 -> 20645.84
B28: S. Livramento - EC | C28: Cabrobo | D28: Pernambuco | E28: Norte | F28: 1 | G28: ='Quadro RESUMO'!$D$20 -> 20645.84
B29: S. Livramento - TUD | C29: Cabrobo | D29: Pernambuco | E29: Norte | F29: 1 | G29: ='Quadro RESUMO'!$D$20 -> 20645.84
B30: Mangueira - TUD | C30: Salgueiro | D30: Pernambuco | E30: Norte | F30: 1 | G30: ='Quadro RESUMO'!$D$20 -> 20645.84
B31: Negreiros - EC | C31: Salgueiro | D31: Pernambuco | E31: Norte | F31: 1 | G31: ='Quadro RESUMO'!$D$20 -> 20645.84
B32: Negreiros -TUD | C32: Salgueiro | D32: Pernambuco | E32: Norte | F32: 1 | G32: ='Quadro RESUMO'!$D$20 -> 20645.84
B33: Milagres - EC | C33: Salgueiro | D33: Pernambuco | E33: Norte | F33: 1 | G33: ='Quadro RESUMO'!$D$20 -> 20645.84
B34: Milagres - TUD | C34: Salgueiro | D34: Pernambuco | E34: Norte | F34: 1 | G34: ='Quadro RESUMO'!$D$20 -> 20645.84
B35: Canteiro Cabrobó | C35: Cabrobo | D35: Pernambuco | E35: Norte | F35: 1 | G35: ='Quadro RESUMO'!$D$20 -> 20645.84
B36: Túnel Cuncas I - emboque - EC | C36: Mauriti | D36: Ceará | E36: Norte | F36: 1 | G36: ='Quadro RESUMO'!D19 -> 22921.33
A37: GRUPO 03 -Postos Pernambuco | B37: Areias - EC | C37: Floresta | D37: Pernambuco | E37: Leste | F37: 1 | G37: ='Quadro RESUMO'!$D$20 -> 20645.84 | H37: =SUM(G37:G58) -> 454208.48 | I37: =H37*12 -> 5450501.76
B38: Areias - TUD | C38: Floresta | D38: Pernambuco | E38: Leste | F38: 1 | G38: ='Quadro RESUMO'!$D$20 -> 20645.84
B39: Braúnas - EC | C39: Floresta | D39: Pernambuco | E39: Leste | F39: 1 | G39: ='Quadro RESUMO'!$D$20 -> 20645.84
B40: Braúnas - TUD | C40: Floresta | D40: Pernambuco | E40: Leste | F40: 1 | G40: ='Quadro RESUMO'!$D$20 -> 20645.84
B41: Mandantes - TUD | C41: Floresta | D41: Pernambuco | E41: Leste | F41: 1 | G41: ='Quadro RESUMO'!$D$20 -> 20645.84
B42: Salgueiro - EC | C42: Floresta | D42: Pernambuco | E42: Leste | F42: 1 | G42: ='Quadro RESUMO'!$D$20 -> 20645.84
B43: Salgueiro - TUD | C43: Floresta | D43: Pernambuco | E43: Leste | F43: 1 | G43: ='Quadro RESUMO'!$D$20 -> 20645.84
B44: Muquém - EC | C44: Floresta | D44: Pernambuco | E44: Leste | F44: 1 | G44: ='Quadro RESUMO'!$D$20 -> 20645.84
B45: Muquém - TUD | C45: Floresta | D45: Pernambuco | E45: Leste | F45: 1 | G45: ='Quadro RESUMO'!$D$20 -> 20645.84
B46: Cacimba Nova - TUD | C46: Custodia | D46: Pernambuco | E46: Leste | F46: 1 | G46: ='Quadro RESUMO'!$D$20 -> 20645.84
B47: Bagres - EC | C47: Custodia | D47: Pernambuco | E47: Leste | F47: 1 | G47: ='Quadro RESUMO'!$D$20 -> 20645.84
B48: Bagres - TUD | C48: Custodia | D48: Pernambuco | E48: Leste | F48: 1 | G48: ='Quadro RESUMO'!$D$20 -> 20645.84
B49: Copiti - EC | C49: Custodia | D49: Pernambuco | E49: Leste | F49: 1 | G49: ='Quadro RESUMO'!$D$20 -> 20645.84
B50: Copiti - TUD | C50: Custodia | D50: Pernambuco | E50: Leste | F50: 1 | G50: ='Quadro RESUMO'!$D$20 -> 20645.84
B51: Moxotó - TUD | C51: Sertânia | D51: Pernambuco | E51: Leste | F51: 1 | G51: ='Quadro RESUMO'!$D$20 -> 20645.84
B52: Barreiros - EC | C52: Sertânia | D52: Pernambuco | E52: Leste | F52: 1 | G52: ='Quadro RESUMO'!$D$20 -> 20645.84
B53: Barreiros - TUD | C53: Sertânia | D53: Pernambuco | E53: Leste | F53: 1 | G53: ='Quadro RESUMO'!$D$20 -> 20645.84
B54: Campos - EC | C54: Sertânia | D54: Pernambuco | E54: Leste | F54: 1 | G54: ='Quadro RESUMO'!$D$20 -> 20645.84
B55: Campos - TUD | C55: Sertânia | D55: Pernambuco | E55: Leste | F55: 1 | G55: ='Quadro RESUMO'!$D$20 -> 20645.84
B56: Barro Branco - EC | C56: Sertânia | D56: Pernambuco | E56: Leste | F56: 1 | G56: ='Quadro RESUMO'!$D$20 -> 20645.84
B57: Barro Branco - TUD | C57: Sertânia | D57: Pernambuco | E57: Leste | F57: 1 | G57: ='Quadro RESUMO'!$D$20 -> 20645.84
B58: Canteiro Custódia - Lote 10 | C58: Custodia | D58: Pernambuco | E58: Leste | F58: 1 | G58: ='Quadro RESUMO'!$D$20 -> 20645.84
A59: GRUPO 04 - Postos Paraíba | B59: Morros - TUD | C59: São Jose de Piranhas | D59: Paraíba | E59: Norte | F59: 1 | G59: ='Quadro RESUMO'!D18 -> 19112.31 | H59: =SUM(G59:G65) -> 133786.17 | I59: =H59*12 -> 1605434.04
B60: Boa Vista - EC | C60: São Jose de Piranhas | D60: Paraíba | E60: Norte | F60: 1 | G60: ='Quadro RESUMO'!D18 -> 19112.31
B61: Boa Vista - TUD | C61: São Jose de Piranhas | D61: Paraíba | E61: Norte | F61: 1 | G61: ='Quadro RESUMO'!D18 -> 19112.31
B62: Caiçara - EC | C62: Cajazeiras | D62: Paraíba | E62: Norte | F62: 1 | G62: ='Quadro RESUMO'!D18 -> 19112.31
B63: Caiçara - TUD | C63: Cajazeiras | D63: Paraíba | E63: Norte | F63: 1 | G63: ='Quadro RESUMO'!D18 -> 19112.31
B64: Canteiro São José de Piranhas | C64: São Jose de Piranhas | D64: Paraíba | E64: Norte | F64: 1 | G64: ='Quadro RESUMO'!D18 -> 19112.31
B65: Monteiro - EC | C65: Monteiro | D65: Paraíba | E65: Leste | F65: 1 | G65: ='Quadro RESUMO'!D18 -> 19112.31
F66: =SUM(F12:F65) -> 54 | G66: =SUM(G12:G65) -> 1131446.53 | H66: =SUM(H12:H65) -> 1131446.53 | I66: =SUM(I12:I65) -> 13577358.36

Sheet Posto Fixo 24h - Paraíba
A4: Prestação de serviços continuados de vigilância armada, visando à segurança das obras civis, das instalações dos canteiros de obras e dos equipamentos hidromecânicos e eletromecânicos do Eixo Norte do PISF – Projeto de Integração do rio São Francisco com as bacias hidrográficas do nordeste setentrional, com área de atuação no estado de Pernambuco, Paraíba, Ceará e Rio Grande do Norte
A9: ANEXO I: PLANILHA DE CUSTOS E FORMAÇÃO DE PREÇOS
A10: INSTRUÇÃO NORMATIVA Nº 05 DE 25/05/17 - SLTI/MPOG
A12: DISCRIMINAÇÃO DOS SERVIÇOS (Dados referentes à contratação)
A13: A | B13: Data de apresentação da proposta (dia/mês/ano) | E13: 2020-08-01
A14: B | B14: Município/UF | E14: Paraíba
A15: C | B15: Ano Acordo, Convenção ou Sentença Normativa em Dissídio Coletivo | E15: 2020
A16: D | B16: Nº de meses de execução contratual | E16: 12 meses
A18: IDENTIFICAÇÃO DO SERVIÇO
A19: Tipo de serviço | C19: Unidade de Medida | D19: Quantidade total a contratar (em função da unidade de medida)
A21: Vigilância das obras civis, instalações dos canteiros de obras e dos equipamentos hidromecânicos do Eixo Norte do PISF | C21: Posto Fixo | D21: 1
A25: MÃO-DE-OBRA VINCULADA À EXECUÇÃO CONTRATUAL
A26: Descrição: | G26: 7 dias x 4,345 semanas no mês x 7 horas noturnas por dia (calcula 8h) x 1,25 adicional / 2 (qnt de pessoas por posto)
A27: Posto Fixo de 24 (vinte e quatro) horas diárias, inclusive aos sábados, domingos e feriados, envolvendo 4 (quatro) vigilantes em turnos revezados de 12 (doze) x 36 (trinta e seis) horas.
A29: Dados complementares para composição dos custos referente à mão de obra | G29: * Hora Diurna: R$ 1.375,49 / 220 horas = R$ | K29: =1375.49/220 -> 6.252227273 | M29: =1375.49/220 -> 6.252227273
A30: 1 | B30: Tipo de Serviço | D30: Vigilância Patrimonial | G30: * Adicional = 20% da Hora diurna = R$ | K30: =0.2*K29 -> 1.250445455 | M30: =1443.08/220 -> 6.559454545
A31: 2 | B31: Classificação Brasileira de Ocupações (CBO) | D31: 5173-30
A32: 3 | B32: Salário Normativo da Categoria Proifissinal (com adicional de periculosidade) | D32: =C40+C41 -> 1443.026 | K32: =7.94*0.2 -> 1.588 | M32: =6.56*0.2 -> 1.312
A33: 4 | B33: Categoria profissional (vinculada à execução contratual) | D33: Vigilante
A34: 5 | B34: Data-base da categoria (dia/mês/ano) | D34: 2020-03-01 | G34: =(7*4.345*7*1.46)/2 -> 155.42065
A35: Observação: Na data de elaboração da planilha de Custos ainda não havia sido homologado a Convenção Coletiva de Trabalho 2020/2021, porém a tabela salarial 2020/2021 já estava vigente, sendo utilizada como base para a precificação.
A38: MÓDULO 1: COMPOSIÇÃO DA REMUNERAÇÃO
A39: ITEM | B39: DESCRIÇÃO | C39: Valor Unitário (R$) | D39: Quantidade | E39: Valor Total (R$)
A40: A | B40: Salário Base (CCT 2019 - cláusula 3ª) | C40: 1110.02 | D40: 4 | E40: =C40*D40 -> 4440.08 | H40: Salário + Adicional de Periculosidade + Adicional Noturno = R$ 1.527,57
A41: B | B41: Adicional de Periculosidade (CCT 2019 - cláusula 3ª) | C41: =C40*30% -> 333.006 | D41: 4 | E41: =C41*D41 -> 1332.024
A42: C | B42: Adicional Noturno (CCT 2020 - cláusula 48ª) | C42: =D32*58.33%*20% -> 168.3434132 | D42: 2 | E42: =C42*D42 -> 336.6868263 | H42: Hora Noturna = R$ 6,94
A43: D | B43: Hora Noturna Reduzida (CCT 2020 - cláusula 48ª) | C43: =D32*8.33%*1.2 -> 144.244879 | D43: 2 | E43: 288.4897579
A44: E | B44: Adicional sobre Hora Noturna Reduzida (CCT 2020 - cláusula 50ª) | C44: =C43*0.2 -> 28.84897579 | D44: 2 | E44: 57.69795158
A45: F | B45: Intervalo Intrajornada Diurna | C45: =(((D32)/220)*1.5)*15 -> 147.5822045 | D45: 2 | E45: 295.1644091
A46: G | B46: Intervalo Intrajornada Noturna | C46: =(((D32+C42)/220)*1.5)*15 -> 164.7991445 | D46: 2 | E46: =C46*D46 -> 329.5982891
A47: H | B47: DSR sobre Adicionais Noturnos | C47: =C42/6 -> 28.05723553 | D47: 2 | E47: 56.11447105
A48: I | B48: DSR sobre intrajornada Diurna | C48: =(C45/6/2)*2 -> 24.59703409 | D48: 2 | E48: 49.19406818
A49: J | B49: DSR sobre intrajornada Noturna | C49: =(C46/6/2)*2 -> 27.46652409 | D49: 2 | E49: 54.93304818
A50: Total da Remuneração Mensal - Total (01 Posto): | E50: =SUM(E40:E49) -> 7239.982821
A52: MÓDULO 2: BENEFÍCIOS MENSAIS E DIÁRIOS
A53: ITEM | B53: DESCRIÇÃO | C53: Valor Unitário (R$) | D53: Quantidade por Posto | E53: Valor Total (R$)
A54: A | B54: Vale Transporte (parcela da empresa) | C54: =(3.7*2*15)-(C40*50%*6%) -> 77.6994 | D54: 4 | E54: =C54*D54 -> 310.7976
A55: B | B55: Auxílio alimentação (Vales, cesta básica, etc.) - CCT 2019 - cláusula 10ª | C55: =(18-(20%*18))*15 -> 216 | D55: 4 | E55: 864
A56: C | B56: Assistência médica/social | C56: 71.78 | D56: 4 | E56: 287.12
A57: D | B57: Seguro de vida, invalidez e funeral | C57: 16.08 | D57: 4 | E57: =C57*D57 -> 64.32
A58: E | B58: Mensalidade Sindical | C58: =0.02*D32 -> 28.86052 | D58: 4 | E58: 115.44208
A59: Total de Benefícios Mensais e Diários (01 Posto): | E59: =SUM(E54:E58) -> 1641.67968
A61: MÓDULO 3: INSUMOS DIVERSOS
A62: ITEM | B62: DESCRIÇÃO | C62: Valor Unitário (R$) | D62: Quantidade | E62: Valor Total (R$)
A63: A | B63: Uniformes | C63: =Insumos!F16 -> 57.43722222 | D63: 4 | E63: =C63*D63 -> 229.7488889
A64: B | B64: Armas, materiais e equipamentos, inclusive de proteção individual (EPI) | C64: =Insumos!F22 -> 54.17860092 | D64: 4 | E64: =C64*D64 -> 216.7144037
A65: Total de Insumos Diversos (01 Posto): | E65: =SUM(E63:E64) -> 446.4632926
A66: Nota: Valores mensais por POSTO.
A68: MÓDULO 4: ENCARGOS SOCIAIS E TRABALHISTAS - QUADRO-RESUMO
A69: ITEM | B69: DESCRIÇÃO | D69: % | E69: Valor (R$)
A70: 4.1 | B70: GRUPO "A" | D70: ='Encargos Sociais Paraíba'!D59 -> 0.368 | E70: =D70*$E$50 -> 2664.313678
A71: 4.2 | B71: GRUPO "B" | D71: ='Encargos Sociais Paraíba'!D60 -> 0.2531 | E71: =D71*$E$50 -> 1832.439652
A72: 4.3 | B72: GRUPO "C" | D72: ='Encargos Sociais Paraíba'!D61 -> 0.114 | E72: 825.3580416
A73: 4.4 | B73: GRUPO "D" | D73: ='Encargos Sociais Paraíba'!D62 -> 0.1044 | E73: 755.8542066
A74: 4.5 | B74: GRUPO "E" | D74: ='Encargos Sociais Paraíba'!D63 -> 0.0103 | E74: 74.57182306
A75: TOTAL - Encargos Sociais e Trabalhistas: | D75: =SUM(D70:D74) -> 0.8498 | E75: =SUM(E70:E74) -> 6152.537402
A77: MÓDULO 5: CUSTOS INDIRETOS, TRIBUTOS E LUCRO
A78: ITEM | B78: DESCRIÇÃO | D78: % | E78: Valor (R$)
A79: A | B79: Custos Indiretos (CI) | D79: 0.06 | E79: =D79*(E50+E59+E65+E75) -> 928.8397917
A80: B | B80: Tributos (percentual sobre o valor do faturamento)
A81: B.1 | B81: Tributos Federais (COFINS/PIS) | D81: 0.0365 | E81: =D103 -> 697.5991858
A82: B.2 | B82: Tributos Estaduais (especificar) | D82: 0 | E82: -
A83: B.3 | B83: Tributos Municipais (ISSQN ou ISS) | D83: 0.05 | E83: =D104 -> 955.615323
A84: C | B84: Lucro (L) | D84: 0.0678 | E84: =D84*(E50+E59+E65+E75) -> 1049.588965
A85: TOTAL - Custos Indiretos, Tributos e Lucro | D85: =SUM(D79:D84) -> 0.2143 | E85: =SUM(E79:E84) -> 3631.643265
A87: QUADRO RESUMO DO CUSTO POR POSTO DE TRABALHO
A88: Mão de obra vinculada à execução contratual (Valor para 01 Posto = 04 Empregados) | E88: Valor (R$)
A89: A | B89: Módulo 1 – Composição da Remuneração | E89: =E50 -> 7239.982821
A90: B | B90: Módulo 2 – Encargos e Benefícios Anuais, Mensais e Diários | E90: =E59 -> 1641.67968
A91: C | B91: Módulo 3 – Insumos Diversos | E91: =E65 -> 446.4632926
A92: D | B92: Módulo 4 – Encargos Sociais e Trabalhistas | E92: =E75 -> 6152.537402
A93: Subtotal (A + B + C + D): | E93: =SUM(E89:E92) -> 15480.6632
A94: E | B94: Módulo 5 – Custos indiretos, tributos e lucro | E94: =E85 -> 3631.643265
A95: Valor Total de Posto Fixo de 24 (vinte e quatro) horas diárias, inclusive aos sábados, domingos e feriados, envolvendo 4 (quatro) vigilantes em turnos revezados de 12 (doze) x 36 (trinta e seis) horas: | E95: =ROUND(E93+E94,2) -> 19112.31
A99: CÁLCULO PIS/COFINS
A100: P0 = (MÓD 1 + MÓD 2 + MÓD 3 + MÓD 4) + (CI) + (L) | D100: =E50+E59+E65+E75+E79+E84 -> 17459.09195
A101: P1 = P0/(1 - 0,0865) | D101: =D100/(1-0.0865) -> 19112.30646
A102: T = P1 - P0 | D102: =D101-D100 -> 1653.214509
A103: COFINS/PIS = (3,65/8,65) x T | D103: =(3.65/8.65)*D102 -> 697.5991858
A104: ISS = (5,00/8,65) x T | D104: =(5/8.65)*D102 -> 955.615323

Sheet Posto Fixo 24h - Ceará
A4: Prestação de serviços continuados de vigilância armada, visando à segurança das obras civis, das instalações dos canteiros de obras e dos equipamentos hidromecânicos e eletromecânicos do Eixo Norte do PISF – Projeto de Integração do rio São Francisco com as bacias hidrográficas do nordeste setentrional, com área de atuação no estado de Pernambuco, Paraíba, Ceará e Rio Grande do Norte
A9: ANEXO I: PLANILHA DE CUSTOS E FORMAÇÃO DE PREÇOS
A10: INSTRUÇÃO NORMATIVA Nº 05 DE 25/05/17 - SLTI/MPOG
A12: DISCRIMINAÇÃO DOS SERVIÇOS (Dados referentes à contratação)
A13: A | B13: Data de apresentação da proposta (dia/mês/ano) | E13: 2020-08-01
A14: B | B14: Município/UF | E14: Ceará
A15: C | B15: Ano Acordo, Convenção ou Sentença Normativa em Dissídio Coletivo | E15: 2020
A16: D | B16: Nº de meses de execução contratual | E16: 12 meses
A18: IDENTIFICAÇÃO DO SERVIÇO
A19: Tipo de serviço | C19: Unidade de Medida | D19: Quantidade total a contratar (em função da unidade de medida)
A21: Vigilância das obras civis, instalações dos canteiros de obras e dos equipamentos hidromecânicos do Eixo Norte do PISF | C21: Posto Fixo | D21: 1
A25: MÃO-DE-OBRA VINCULADA À EXECUÇÃO CONTRATUAL
A26: Descrição: | G26: 7 dias x 4,345 semanas no mês x 7 horas noturnas por dia (calcula 8h) x 1,25 adicional / 2 (qnt de pessoas por posto)
A27: Posto Fixo de 24 (vinte e quatro) horas diárias, inclusive aos sábados, domingos e feriados, envolvendo 4 (quatro) vigilantes em turnos revezados de 12 (doze) x 36 (trinta e seis) horas.
A29: Dados complementares para composição dos custos referente à mão de obra | G29: * Hora Diurna: R$ 1.745,80 / 220 horas = R$ | K29: =1745.8/220 -> 7.935454545 | M29: =1375.49/220 -> 6.252227273
A30: 1 | B30: Tipo de Serviço | D30: Vigilância Patrimonial | G30: * Adicional = 20% da Hora diurna = R$ | K30: =0.2*K29 -> 1.587090909 | M30: =1443.08/220 -> 6.559454545
A31: 2 | B31: Classificação Brasileira de Ocupações (CBO) | D31: 5173-30
A32: 3 | B32: Salário Normativo da Categoria Proifissinal (com adicional de periculosidade) | D32: =C38+C39 -> 1745.796 | K32: =7.94*0.2 -> 1.588 | M32: =6.56*0.2 -> 1.312
A33: 4 | B33: Categoria profissional (vinculada à execução contratual) | D33: Vigilante
A34: 5 | B34: Data-base da categoria (dia/mês/ano) | D34: 2020-01-01 | G34: =(7*4.345*7*1.46)/2 -> 155.42065
A36: MÓDULO 1: COMPOSIÇÃO DA REMUNERAÇÃO
A37: ITEM | B37: DESCRIÇÃO | C37: Valor Unitário (R$) | D37: Quantidade | E37: Valor Total (R$)
A38: A | B38: Salário Base (CCT 2019 - cláusula 3ª) | C38: 1342.92 | D38: 4 | E38: =C38*D38 -> 5371.68 | H38: Salário + Adicional de Periculosidade + Adicional Noturno = R$ 1.527,57
A39: B | B39: Adicional de Periculosidade (CCT 2019 - cláusula 3ª) | C39: =C38*30% -> 402.876 | D39: 4 | E39: =C39*D39 -> 1611.504
A40: C | B40: Adicional Noturno (CCT 2020 - cláusula 48ª) | C40: =D32*58.33%*20% -> 203.6645614 | D40: 2 | E40: =C40*D40 -> 407.3291227 | H40: Hora Noturna = R$ 6,94
A41: D | B41: Hora Noturna Reduzida (CCT 2020 - cláusula 48ª) | C41: =D32*8.33%*1.2 -> 174.5097682 | D41: 2 | E41: 349.0195363
A42: E | B42: Adicional sobre Hora Noturna Reduzida (CCT 2020 - cláusula 50ª) | C42: =C41*0.2 -> 34.90195363 | D42: 2 | E42: 69.80390726
A43: F | B43: Intervalo Intrajornada (CCT 2020 - cláusula 28ª) | C43: =(((D32)/220)*1.5)*15 -> 178.5473182 | D43: 2 | E43: 357.0946364
A44: G | B44: Intervalo Intrajornada (CCT 2020 - cláusula 28ª) | C44: =(((D32+C40)/220)*1.5)*15 -> 199.3766483 | D44: 2 | E44: =C44*D44 -> 398.7532966
A45: H | B45: DSR sobre Adicionais Noturnos | C45: =C40/6 -> 33.94409356 | D45: 2 | E45: 67.88818712
A46: I | B46: DSR sobre intrajornada Diurna | C46: =(C43/6/2)*2 -> 29.75788636 | D46: 2 | E46: 59.51577273
A47: J | B47: DSR sobre intrajornada Noturna | C47: =(C44/6/2)*2 -> 33.22944139 | D47: 2 | E47: =C47*D47 -> 66.45888277
A48: Total da Remuneração Mensal - Total (01 Posto): | E48: =SUM(E38:E47) -> 8759.047342
A50: MÓDULO 2: BENEFÍCIOS MENSAIS E DIÁRIOS
A51: ITEM | B51: DESCRIÇÃO | C51: Valor Unitário (R$) | D51: Quantidade por Posto | E51: Valor Total (R$)
A52: A | B52: Vale Transporte (parcela da empresa) | C52: =(3.7*2*15)-(C38*50%*6%) -> 70.7124 | D52: 4 | E52: =C52*D52 -> 282.8496
A53: B | B53: Auxílio alimentação (Vales, cesta básica, etc.) - CCT 2020 - cláusula 19ª | C53: =(27-(15%*27))*15 -> 344.25 | D53: 4 | E53: 1377
A54: C | B54: Assistência médica/social (CCT 2020 - cláusula 13ª) | C54: 71.78 | D54: 4 | E54: 287.12
A55: D | B55: Seguro de vida, invalidez e funeral (CCT 2020 - cláusula 14ª/15ª) | C55: 16.08 | D55: 4 | E55: 64.32
A56: E | B56: Mensalidade Sindical | C56: 33.57 | D56: 4 | E56: 134.28
A57: Total de Benefícios Mensais e Diários (01 Posto): | E57: =SUM(E52:E56) -> 2145.5696
A59: MÓDULO 3: INSUMOS DIVERSOS
A60: ITEM | B60: DESCRIÇÃO | C60: Valor Unitário (R$) | D60: Quantidade | E60: Valor Total (R$)
A61: A | B61: Uniformes | C61: =Insumos!F16 -> 57.43722222 | D61: 4 | E61: =C61*D61 -> 229.7488889
A62: B | B62: Armas, materiais e equipamentos, inclusive de proteção individual (EPI) | C62: =Insumos!F22 -> 54.17860092 | D62: 4 | E62: =C62*D62 -> 216.7144037
A63: Total de Insumos Diversos (01 Posto): | E63: =SUM(E61:E62) -> 446.4632926
A64: Nota: Valores mensais por POSTO.
A66: MÓDULO 4: ENCARGOS SOCIAIS E TRABALHISTAS - QUADRO-RESUMO
A67: ITEM | B67: DESCRIÇÃO | D67: % | E67: Valor (R$)
A68: 4.1 | B68: GRUPO "A" | D68: ='Encargos Sociais Ceará'!D63 -> 0.368 | E68: =D68*$E$48 -> 3223.329422
A69: 4.2 | B69: GRUPO "B" | D69: ='Encargos Sociais Ceará'!D64 -> 0.1515 | E69: =D69*$E$48 -> 1326.995672
A70: 4.3 | B70: GRUPO "C" | D70: ='Encargos Sociais Ceará'!D65 -> 0.1263 | E70: 1106.267679
A71: 4.4 | B71: GRUPO "D" | D71: ='Encargos Sociais Ceará'!D66 -> 0.0743 | E71: 650.7972175
A72: 4.5 | B72: GRUPO "E" | D72: ='Encargos Sociais Ceará'!D67 -> 0.003 | E72: 26.27714203
A73: 4.6 | B73: GRUPO "F" | D73: ='Encargos Sociais Ceará'!D68 -> 0.1006 | E73: =D73*$E$48 -> 881.1601626
A74: TOTAL - Encargos Sociais e Trabalhistas: | D74: =SUM(D68:D72) -> 0.7231 | E74: =SUM(E68:E73) -> 7214.827296
A76: MÓDULO 5: CUSTOS INDIRETOS, TRIBUTOS E LUCRO
A77: ITEM | B77: DESCRIÇÃO | D77: % | E77: Valor (R$)
A78: A | B78: Custos Indiretos (CI) | D78: 0.06 | E78: =D78*(E48+E57+E63+E74) -> 1113.954452
A79: B | B79: Tributos (percentual sobre o valor do faturamento)
A80: B.1 | B80: Tributos Federais (COFINS/PIS) | D80: 0.0365 | E80: =D102 -> 836.6283675
A81: B.2 | B81: Tributos Estaduais (especificar) | D81: 0 | E81: -
A82: B.3 | B82: Tributos Municipais (ISSQN ou ISS) | D82: 0.05 | E82: =D103 -> 1146.066257
A83: C | B83: Lucro (L) | D83: 0.0678 | E83: =D83*(E48+E57+E63+E74) -> 1258.768531
A84: TOTAL - Custos Indiretos, Tributos e Lucro | D84: =SUM(D78:D83) -> 0.2143 | E84: =SUM(E78:E83) -> 4355.417607
A86: QUADRO RESUMO DO CUSTO POR POSTO DE TRABALHO
A87: Mão de obra vinculada à execução contratual (Valor para 01 Posto = 04 Empregados) | E87: Valor (R$)
A88: A | B88: Módulo 1 – Composição da Remuneração | E88: =E48 -> 8759.047342
A89: B | B89: Módulo 2 – Encargos e Benefícios Anuais, Mensais e Diários | E89: =E57 -> 2145.5696
A90: C | B90: Módulo 3 – Insumos Diversos | E90: =E63 -> 446.4632926
A91: D | B91: Módulo 4 – Encargos Sociais e Trabalhistas | E91: =E74 -> 7214.827296
A92: Subtotal (A + B + C + D): | E92: =SUM(E88:E91) -> 18565.90753
A93: E | B93: Módulo 5 – Custos indiretos, tributos e lucro | E93: =E84 -> 4355.417607
A94: Valor Total de Posto Fixo de 24 (vinte e quatro) horas diárias, inclusive aos sábados, domingos e feriados, envolvendo 4 (quatro) vigilantes em turnos revezados de 12 (doze) x 36 (trinta e seis) horas: | E94: =ROUND(E92+E93,2) -> 22921.33
A98: CÁLCULO PIS/COFINS
A99: P0 = (MÓD 1 + MÓD 2 + MÓD 3 + MÓD 4) + (CI) + (L) | D99: =E48+E57+E63+E74+E78+E83 -> 20938.63051
A100: P1 = P0/(1 - 0,0865) | D100: =D99/(1-0.0865) -> 22921.32514
A101: T = P1 - P0 | D101: =D100-D99 -> 1982.694624
A102: COFINS/PIS = (3,65/8,65) x T | D102: =(3.65/8.65)*D101 -> 836.6283675
A103: ISS = (5,00/8,65) x T | D103: =(5/8.65)*D101 -> 1146.066257

Sheet Posto Fixo 24h - Pernambuco
A4: Prestação de serviços continuados de vigilância armada, visando à segurança das obras civis, das instalações dos canteiros de obras e dos equipamentos hidromecânicos e eletromecânicos do Eixo Norte do PISF – Projeto de Integração do rio São Francisco com as bacias hidrográficas do nordeste setentrional, com área de atuação no estado de Pernambuco, Paraíba, Ceará e Rio Grande do Norte
A9: ANEXO I: PLANILHA DE CUSTOS E FORMAÇÃO DE PREÇOS
A10: INSTRUÇÃO NORMATIVA Nº 05 DE 25/05/17 - SLTI/MPOG
A12: DISCRIMINAÇÃO DOS SERVIÇOS (Dados referentes à contratação)
A13: A | B13: Data de apresentação da proposta (dia/mês/ano) | E13: 2020-08-01
A14: B | B14: Município/UF | E14: Pernambuco
A15: C | B15: Ano Acordo, Convenção ou Sentença Normativa em Dissídio Coletivo | E15: 2020
A16: D | B16: Nº de meses de execução contratual | E16: 12 meses
A18: IDENTIFICAÇÃO DO SERVIÇO
A19: Tipo de serviço | C19: Unidade de Medida | D19: Quantidade total a contratar (em função da unidade de medida)
A21: Vigilância das obras civis, instalações dos canteiros de obras e dos equipamentos hidromecânicos do Eixo Norte do PISF | C21: Posto Fixo | D21: 1
A25: MÃO-DE-OBRA VINCULADA À EXECUÇÃO CONTRATUAL
A26: Descrição: | G26: 7 dias x 4,345 semanas no mês x 7 horas noturnas por dia (calcula 8h) x 1,25 adicional / 2 (qnt de pessoas por posto)
A27: Posto Fixo de 24 (vinte e quatro) horas diárias, inclusive aos sábados, domingos e feriados, envolvendo 4 (quatro) vigilantes em turnos revezados de 12 (doze) x 36 (trinta e seis) horas.
A29: Dados complementares para composição dos custos referente à mão de obra | G29: * Hora Diurna: R$ 1.375,49 / 220 horas = R$ | K29: =1375.49/220 -> 6.252227273 | M29: =1375.49/220 -> 6.252227273
A30: 1 | B30: Tipo de Serviço | D30: Vigilância Patrimonial | G30: * Adicional = 20% da Hora diurna = R$ | K30: =0.2*K29 -> 1.250445455 | M30: =1443.08/220 -> 6.559454545
A31: 2 | B31: Classificação Brasileira de Ocupações (CBO) | D31: 5173-30
A32: 3 | B32: Salário Normativo da Categoria Proifissinal (com adicional de periculosidade) | D32: =C39+C40 -> 1605.552 | K32: =7.94*0.2 -> 1.588 | M32: =6.56*0.2 -> 1.312
A33: 4 | B33: Categoria profissional (vinculada à execução contratual) | D33: Vigilante
A34: 5 | B34: Data-base da categoria (dia/mês/ano) | D34: 2020-01-01 | G34: =(7*4.345*7*1.46)/2 -> 155.42065
A37: MÓDULO 1: COMPOSIÇÃO DA REMUNERAÇÃO
A38: ITEM | B38: DESCRIÇÃO | C38: Valor Unitário (R$) | D38: Quantidade | E38: Valor Total (R$)
A39: A | B39: Salário Base (CCT 2020 - cláusula 3ª) | C39: 1235.04 | D39: 4 | E39: =C39*D39 -> 4940.16 | H39: Salário + Adicional de Periculosidade + Adicional Noturno = R$ 1.527,57
A40: B | B40: Adicional de Periculosidade (CCT 2020 - cláusula 3ª) | C40: =30%*C39 -> 370.512 | D40: 4 | E40: =C40*D40 -> 1482.048
A41: C | B41: Adicional Noturno (CCT 2020 - cláusula 48ª) | C41: =D32*58.33%*20% -> 187.3036963 | D41: 2 | E41: =C41*D41 -> 374.6073926 | H41: Hora Noturna = R$ 6,94
A42: D | B42: Hora Noturna Reduzida (CCT 2020 - cláusula 48ª) | C42: =D32*8.33%*1.2 -> 160.4909779 | D42: 2 | E42: 320.9819558
A43: E | B43: Adicional sobre Hora Noturna Reduzida (CCT 2020 - cláusula 50ª) | C43: =C42*0.2 -> 32.09819558 | D43: 2 | E43: 64.19639117
A44: F | B44: Intervalo Intrajornada (ACT 2020 - cláusula 6ª) - DIURNA | C44: =(((D32)/220)*1.5)*15 -> 164.2041818 | D44: 2 | E44: 328.4083636
A45: G | B45: Intervalo Intrajornada (ACT 2020 - cláusula 6ª) - NOTURNA | C45: =(((D32+C41)/220)*1.5)*15 -> 183.3602417 | D45: 2 | E45: =C45*D45 -> 366.7204833
A46: H | B46: DSR sobre Adicionais Noturnos (CCT 2019 - cláusula 44ª ) | C46: =C41/6 -> 31.21728272 | D46: 2 | E46: 62.43456544
A47: I | B47: DSR sobre intrajornada Diurna | C47: =(C44/6/2)*2 -> 27.36736364 | D47: 2 | E47: 54.73472727
A48: J | B48: DSR sobre intrajornada Noturna | C48: =(C45/6/2)*2 -> 30.56004028 | D48: 2 | E48: 61.12008056
A49: Total da Remuneração Mensal - Total (01 Posto): | E49: =SUM(E39:E48) -> 8055.41196
A51: MÓDULO 2: BENEFÍCIOS MENSAIS E DIÁRIOS
A52: ITEM | B52: DESCRIÇÃO | C52: Valor Unitário (R$) | D52: Quantidade por Posto | E52: Valor Total (R$)
A53: A | B53: Vale Transporte (parcela da empresa) | C53: =(3.7*2*15)-(C39*50%*6%) -> 73.9488 | D53: 4 | E53: =C53*D53 -> 295.7952
A54: B | B54: Auxílio alimentação (Vales, cesta básica, etc.) - CCT 2020 - cláusula 13ª | C54: =(27.16-0.67)*15 -> 397.35 | D54: 4 | E54: 1589.4
A55: C | B55: Assistência médica/social (CCt 2020 - cláusula 15ª) | C55: 45.6 | D55: 4 | E55: 182.4
A56: D | B56: Auxílio creche | C56: - | D56: - | E56: -
A57: E | B57: Seguro de vida, invalidez e funeral (CCT 2020 - cláusula 14ª) | C57: 16.08 | D57: 4 | E57: =C57*D57 -> 64.32
A58: Total de Benefícios Mensais e Diários (01 Posto): | E58: =SUM(E53:E57) -> 2131.9152
A60: MÓDULO 3: INSUMOS DIVERSOS
A61: ITEM | B61: DESCRIÇÃO | C61: Valor Unitário (R$) | D61: Quantidade | E61: Valor Total (R$)
A62: A | B62: Uniformes | C62: =Insumos!F16 -> 57.43722222 | D62: 4 | E62: =C62*D62 -> 229.7488889
A63: B | B63: Armas, materiais e equipamentos, inclusive de proteção individual (EPI) | C63: =Insumos!F22 -> 54.17860092 | D63: 4 | E63: =C63*D63 -> 216.7144037
A64: Total de Insumos Diversos (01 Posto): | E64: =SUM(E62:E63) -> 446.4632926
A65: Nota: Valores mensais por POSTO.
A67: MÓDULO 4: ENCARGOS SOCIAIS E TRABALHISTAS - QUADRO-RESUMO
A68: ITEM | B68: DESCRIÇÃO | D68: % | E68: Valor (R$)
A69: 4.1 | B69: GRUPO "A" | D69: ='Encargos Sociais Pernambuco'!D48 -> 0.3754 | E69: =D69*$E$49 -> 3024.00165
A70: 4.2 | B70: GRUPO "B" | D70: ='Encargos Sociais Pernambuco'!D49 -> 0.2264 | E70: =D70*$E$49 -> 1823.745268
A71: 4.3 | B71: GRUPO "C" | D71: ='Encargos Sociais Pernambuco'!D50 -> 0.0691 | E71: 556.6289664
A72: 4.4 | B72: GRUPO "D" | D72: ='Encargos Sociais Pernambuco'!D51 -> 0.08499056 | E72: 684.6339735
A73: TOTAL - Encargos Sociais e Trabalhistas: | D73: =SUM(D69:D72) -> 0.75589056 | E73: =SUM(E69:E72) -> 6089.009857
A75: MÓDULO 5: CUSTOS INDIRETOS, TRIBUTOS E LUCRO
A76: ITEM | B76: DESCRIÇÃO | D76: % | E76: Valor (R$)
A77: A | B77: Custos Indiretos (CI) | D77: 0.06 | E77: =D77*(E49+E58+E64+E73) -> 1003.368019
A78: B | B78: Tributos (percentual sobre o valor do faturamento)
A79: B.1 | B79: Tributos Federais (COFINS/PIS) | D79: 0.0365 | E79: =D101 -> 753.573134
A80: B.2 | B80: Tributos Estaduais (especificar) | D80: 0 | E80: -
A81: B.3 | B81: Tributos Municipais (ISSQN ou ISS) | D81: 0.05 | E81: =D102 -> 1032.291964
A82: C | B82: Lucro (L) | D82: 0.0678 | E82: =D82*(E49+E58+E64+E73) -> 1133.805861
A83: TOTAL - Custos Indiretos, Tributos e Lucro | D83: =SUM(D77:D82) -> 0.2143 | E83: =SUM(E77:E82) -> 3923.038978
A85: QUADRO RESUMO DO CUSTO POR POSTO DE TRABALHO
A86: Mão de obra vinculada à execução contratual (Valor para 01 Posto = 04 Empregados) | E86: Valor (R$)
A87: A | B87: Módulo 1 – Composição da Remuneração | E87: =E49 -> 8055.41196
A88: B | B88: Módulo 2 – Encargos e Benefícios Anuais, Mensais e Diários | E88: =E58 -> 2131.9152
A89: C | B89: Módulo 3 – Insumos Diversos | E89: =E64 -> 446.4632926
A90: D | B90: Módulo 4 – Encargos Sociais e Trabalhistas | E90: =E73 -> 6089.009857
A91: Subtotal (A + B + C + D): | E91: =SUM(E87:E90) -> 16722.80031
A92: E | B92: Módulo 5 – Custos indiretos, tributos e lucro | E92: =E83 -> 3923.038978
A93: Valor Total de Posto Fixo de 24 (vinte e quatro) horas diárias, inclusive aos sábados, domingos e feriados, envolvendo 4 (quatro) vigilantes em turnos revezados de 12 (doze) x 36 (trinta e seis) horas: | E93: =ROUND(E91+E92,2) -> 20645.84
A97: CÁLCULO PIS/COFINS
A98: P0 = (MÓD 1 + MÓD 2 + MÓD 3 + MÓD 4) + (CI) + (L) | D98: =E49+E58+E64+E73+E77+E82 -> 18859.97419
A99: P1 = P0/(1 - 0,0865) | D99: =D98/(1-0.0865) -> 20645.83929
A100: T = P1 - P0 | D100: =D99-D98 -> 1785.865098
A101: COFINS/PIS = (3,65/8,65) x T | D101: =(3.65/8.65)*D100 -> 753.573134
A102: ISS = (5,00/8,65) x T | D102: =(5/8.65)*D100 -> 1032.291964

Sheet Insumos
A5: Prestação de serviços continuados de vigilância armada, visando à segurança das obras civis, das instalações dos canteiros de obras e dos equipamentos hidromecânicos e eletromecânicos do Eixo Norte do PISF – Projeto de Integração do rio São Francisco com as bacias hidrográficas do nordeste setentrional, com área de atuação no estado de Pernambuco, Paraíba, Ceará e Rio Grande do Norte
A10: Estimativa de Preços - INSUMOS
A11: Referência: Pesquisa no Google Shopping, realizada em 16/06/2020
A14: Materiais e equipamentos para os postos de vigilância armada: | C14: Preço Unitário (R$) | D14: Consumo anual | E14: Consumo Mensal | F14: Custo Mensal
A16: 1 | B16: Uniforme | F16: =SUM(F17:F21) -> 57.43722222
A17: 1.1 | B17: Camisa | C17: =I41 -> 67.31833333 | D17: 2 | E17: =D17/12 -> 0.1666666667 | F17: =E17*C17 -> 11.21972222
A18: 1.2 | B18: camisa Interna (malha) | C18: =I42 -> 52.64666667 | D18: 2 | E18: =D18/12 -> 0.1666666667 | F18: =E18*C18 -> 8.774444444
A19: 1.3 | B19: Calça | C19: 101.0366667 | D19: 2 | E19: =D19/12 -> 0.1666666667 | F19: =E19*C19 -> 16.83944444
A20: 1.4 | B20: Par de botas (coturnos) | C20: 181.5266667 | D20: 1 | E20: =D20/12 -> 0.08333333333 | F20: =E20*C20 -> 15.12722222
A21: 1.5 | B21: Boné | C21: 32.85833333 | D21: 2 | E21: =D21/12 -> 0.1666666667 | F21: =E21*C21 -> 5.476388889
A22: 2 | B22: Armas, materiais e equipamentos, inclusive de proteção individual (EPI): | F22: =SUM(F23:F36) -> 54.17860092
A23: 2.1 | B23: Apito de metal, com cordão trançado | C23: =I47 -> 9.348333333 | D23: =1/2 -> 0.5 | E23: =D23/12 -> 0.04166666667 | F23: =E23*C23 -> 0.3895138889
A24: 2.2 | B24: Livro de Ocorrências | C24: =I48 -> 14.81666667 | D24: =(12/3)/4 -> 1 | E24: =D24/12 -> 0.08333333333 | F24: =E24*C24 -> 1.234722222
A25: 2.3 | B25: Revólver calibre 38 com, no mínimo, seis tiros e cano de três polegadas | C25: 4587.005873 | D25: =(1/5)/4 -> 0.05 | E25: =D25/11.98 -> 0.004173622705 | F25: =E25*C25 -> 19.14443186
A26: 2.4 | B26: Jet-Loader (carregador rápido) compatível com armamento | C26: 64.23833333 | D26: =1/5/4 -> 0.05 | E26: =D26/11.98 -> 0.004173622705 | F26: =E26*C26 -> 0.2681065665
A27: 2.5 | B27: Porta Jet-Loader (carregador rápido) compatível com armamento | C27: 22.69166667 | D27: =(1/2) -> 0.5 | E27: =D27/12 -> 0.04166666667 | F27: 0.9454861111
A28: 2.6 | B28: Coldre | C28: 73.19 | D28: =1/2 -> 0.5 | E28: 0.04166666667 | F28: 3.049583333
A29: 2.7 | B29: Porta Tonfa | C29: 14.615 | D29: =1/2 -> 0.5 | E29: 0.04166666667 | F29: 0.6089583333
A30: 2.8 | B30: Cinto Operacional adequado ao armamento e equipamentos fornecidos | C30: 43.795 | D30: =1/2 -> 0.5 | E30: 0.04166666667 | F30: 1.824791667
A31: 2.9 | B31: Tonfa em fibra | C31: 48.72833333 | D31: =(1/5) -> 0.2 | E31: 0.01666666667 | F31: 0.8121388889
A32: 2.10 | B32: Munições de calibre 38 (10 unidades) | C32: 70.11 | D32: =(1/2)/4 -> 0.125 | E32: 0.01041666667 | F32: 0.7303125
A33: 2.11 | B33: Colete Balístico Nível III, conforme Portaria 191/2006 M.T.E | C33: 447.105 | D33: =1/2 -> 0.5 | E33: 0.04166666667 | F33: 18.629375
A34: 2.12 | B34: Lanterna tática portátil Recarregavel | C34: 44.74833333 | D34: =1/2 -> 0.5 | E34: 0.04166666667 | F34: 1.864513889
A35: 2.14 | B35: 2.14. Sistema de comunicação digital
A36: 2.15 | B36: Rádio retransmissor (base fixa / base móvel / portátil) | C36: =I60 -> 1122.4 | D36: =(1/5)/4 -> 0.05 | E36: =D36/12 -> 0.004166666667 | F36: 4.676666667
A39: Materiais e equipamentos para os postos de vigilância armada: Preços cotados através do Google Shopping em 16/06/2020
A40: 1 | B40: UNIFORME | C40: Preço 01 | D40: Preço 02 | E40: Preço 03 | F40: Preço 04 | G40: Preço 05 | H40: Preço 06 | I40: PREÇO MÉDIO
A41: 1.1 | B41: Camisa | C41: 73 | D41: 87.2 | E41: 39.9 | F41: 93.81 | G41: 60 | H41: 50 | I41: =AVERAGE(C41:H41) -> 67.31833333
A42: 1.2 | B42: camisa Interna (malha) | C42: 36.99 | D42: 63.99 | E42: 65 | F42: 55 | G42: 55 | H42: 39.9 | I42: =AVERAGE(C42:H42) -> 52.64666667
A43: 1.3 | B43: Calça | C43: 89 | D43: 85 | E43: 99.9 | F43: 106.08 | G43: 86.24 | H43: 140 | I43: 101.0366667
A44: 1.4 | B44: Par de botas (coturnos) | C44: 185.9 | D44: 199.49 | E44: 105.49 | F44: 180 | G44: 189 | H44: 229.28 | I44: 181.5266667
A45: 1.5 | B45: Boné | C45: 35 | D45: 38.26 | E45: 19 | F45: 39.99 | G45: 19 | H45: 45.9 | I45: 32.85833333
A46: 2 | B46: Armas, materiais e equipamentos, inclusive de proteção individual (EPI) | C46: Preço 01 | D46: Preço 02 | E46: Preço 03 | F46: Preço 04 | G46: Preço 05 | H46: Preço 06 | I46: PREÇO MÉDIO
A47: 2.1 | B47: Apito de metal, com cordão trançado | C47: =16.5/2 -> 8.25 | D47: =24.99/2 -> 12.495 | E47: =18.99/2 -> 9.495 | F47: =16.9/2 -> 8.45 | G47: =12.9/2 -> 6.45 | H47: =21.9/2 -> 10.95 | I47: 9.348333333
A48: 2.2 | B48: Livro de Ocorrências | C48: 8.4 | D48: 10.8 | E48: 17 | F48: 18.9 | G48: 14.4 | H48: 19.4 | I48: 14.81666667
A49: 2.3 | B49: Revólver calibre 38 com, no mínimo, seis tiros e cano de três polegadas | C49: =B79 -> 4269.833333 | D49: =C81 -> 4302.184286 | E49: =D70 -> 5189 | I49: =AVERAGE(C49:H49) -> 4587.005873
A50: 2.4 | B50: Jet-Loader (carregador rápido) compatível com armamento | C50: 52.93 | D50: 47.7 | E50: 119 | F50: 65 | G50: 55 | H50: 45.8 | I50: 64.23833333
A51: 2.5 | B51: Porta Jet-Loader (carregador rápido) compatível com armamento | C51: 14.16 | D51: 10.62 | E51: 35 | F51: 10.62 | G51: 41.9 | H51: 23.85 | I51: 22.69166667
A52: 2.6 | B52: Coldre | C52: 31 | D52: 99.01 | E52: 51.8 | F52: 132.91 | G52: 74 | H52: 50.42 | I52: 73.19
A53: 2.7 | B53: Porta Tonfa | C53: 9 | D53: 18 | E53: 9 | F53: 15.11 | G53: 24.78 | H53: 11.8 | I53: 14.615
A54: 2.8 | B54: Cinto Operacional adequado ao armamento e equipamentos fornecidos | C54: 39.99 | D54: 41.9 | E54: 25 | F54: 95.9 | G54: 19.99 | H54: 39.99 | I54: 43.795
A55: 2.9 | B55: Tonfa em fibra | C55: 43.39 | D55: 54.99 | E55: =160/2 -> 80 | F55: 34 | G55: 19.99 | H55: =120/2 -> 60 | I55: 48.72833333
A56: 2.10 | B56: Munições de calibre 38 (10 unidades) | C56: 70.11 | I56: 70.11
A57: 2.11 | B57: Colete Balístico Nível III, conforme Portaria 191/2006 M.T.E | C57: 359.14 | D57: 455 | E57: 459.9 | F57: 599 | G57: 430 | H57: 379.59 | I57: 447.105
A58: 2.12 | B58: Lanterna tática portátil Recarregavel | C58: 59.9 | D58: 37.81 | E58: 29.99 | F58: 28 | G58: 54.8 | H58: 57.99 | I58: 44.74833333
A59: 2.14 | B59: Sistema de comunicação digital
A60: 2.15 | B60: Rádio retransmissor (base fixa / base móvel / portátil) | C60: 740.32 | D60: 2280 | E60: 529.9 | F60: 619.99 | G60: 1744.19 | H60: 820 | I60: 1122.4
B64: Preço Médio das Lojas de Tiro
B66: PANTANAL | C66: CASA DO TIRO | D66: FALCON
B67: 3592.1 | C67: 3087.5 | D67: 4549
B68: 3469.7 | C68: 4201.45 | D68: 5199
B69: 3808 | C69: 5206 | D69: 5819
B70: 3887.05 | C70: 4206.18 | D70: =AVERAGE(D67:D69) -> 5189
B71: 3672 | C71: 2797
B72: 4762.55 | C72: 3781
B73: 5113.6 | C73: 4859.29
B74: 4983.55 | C74: 5475.15
B75: 4375.8 | C75: 5332.71
B76: 4048.55 | C76: 4230.9
B77: 4729.4 | C77: 4754.04
B78: 4795.7 | C78: 4864
B79: =AVERAGE(B67:B78) -> 4269.833333 | C79: 3826.92
C80: 3608.44
C81: =AVERAGE(C67:C80) -> 4302.184286

Sheet Encargos Sociais Paraíba
A5: Prestação de serviços continuados de vigilância armada, visando à segurança das obras civis, das instalações dos canteiros de obras e dos equipamentos hidromecânicos e eletromecânicos do PISF – projeto de integração do rio São Francisco com as bacias hidrográficas do nordeste setentrional, com área de atuação no estado de Pernambuco
A10: MÓDULO 4: ENCARGOS SOCIAIS E TRABALHISTAS
A12: Total da Remuneração Mensal - Total (01 Posto): | E12: ='Posto Fixo 24h - Paraíba'!E50 -> 7239.982821
A14: MÓDULO 4: ENCARGOS SOCIAIS E TRABALHISTAS
A15: NOTA: Os percentuais dos encargos previdenciários e FGTS, a serem preenchidos na coluna %, são aqueles estabelecidos pela legislação vigente, incidentes sobre a remuneração
A16: 4.1 | B16: GRUPO "A" - Encargos Previdenciários e FGTS | D16: % | E16: Valor (R$)
A17: A | B17: INSS (Art. 22 inciso I da Lei 8.212/91) | D17: 0.2 | E17: =D17*$E$12 -> 1447.996564
A18: B | B18: FGTS (Art. 15 da Lei 8030/90 art. 7° inciso III CF/88) | D18: 0.08 | E18: =D18*$E$12 -> 579.1986257
A19: C | B19: SAT | D19: 0.03 | E19: =D19*$E$12 -> 217.1994846
A20: D | B20: Salário Educação (Art. 3° inciso I Decreto 87.043/) | D20: 0.025 | E20: 180.9995705
A21: E | B21: SESC/SESI (Art. 3° da Lei 8036/90) | D21: 0.015 | E21: 108.5997423
A22: F | B22: SENAC/SENAI (Decreto 2.318/86) | D22: 0.01 | E22: 72.39982821
A23: G | B23: SEBRAE (Art. 8° Lei 8029/90 e 8154 de 28/12/90) | D23: 0.006 | E23: 43.43989693
A24: H | B24: INCRA (Lei 7787 de 30/06/890e DL 1146/70) | D24: 0.002 | E24: 14.47996564
A25: TOTAL - Grupo A: | D25: =SUM(D17:D24) -> 0.368 | E25: =SUM(E17:E24) -> 2664.313678
A27: 4.2 | B27: GRUPO "B" - Custo de Reposição do Profissional Ausente | D27: % | E27: Valor (R$)
A28: A | B28: Férias e terço constitucionsl de férias | D28: 0.1274 | E28: =D28*$E$12 -> 922.3738114
A29: B | B29: Ausência por Doença | D29: 0.0386 | E29: 279.4633369
A30: C | B30: Licença Paternidade | D30: 0.0006 | E30: 4.343989693
A31: D | B31: Ausências Legais | D31: 0.0148 | E31: 107.1517458
A32: E | B32: Ausência por Acidente de Trabalho | D32: 0.0036 | E32: 26.06393816
A33: F | B33: Outros | D33: 0 | E33: 0
A34: G | B34: Incidência do Aviso Prévio Indenizado sobre o Custo de Reposição | D34: 0.0681 | E34: =D34*$E$12 -> 493.0428301
A35: TOTAL - Grupo B: | D35: =SUM(D28:D34) -> 0.2531 | E35: =SUM(E28:E34) -> 1832.439652
A37: 4.3 | B37: GRUPO "C" - 13º Salário e Adicional de Férias | D37: % | E37: Valor (R$)
A38: A | B38: 13º Salário | D38: 0.0833 | E38: =D38*$E$12 -> 603.090569
A39: B | B39: Incidência do Aviso Prévio Indenizado sobre 13º Salário e Adicional de Férias | D39: 0.0307 | E39: =D39*$E$12 -> 222.2674726
A40: TOTAL - Grupo C: | D40: =SUM(D38:D39) -> 0.114 | E40: =SUM(E38:E39) -> 825.3580416
A42: 4.4 | B42: GRUPO "D" - Provisão para Rescisão | D42: % | E42: Valor (R$)
A43: A | B43: Aviso Prévio Indenizado | D43: 0.0281 | E43: =D43*$E$12 -> 203.4435173
A44: B | B44: Incidência do FGTS do aviso prévio indenizado | D44: 0.0022 | E44: =D44*$E$12 -> 15.92796221
A45: C | B45: Multa do FGTS do Aviso Prévio Indenizado | D45: 0.004 | E45: 28.95993129
A46: D | B46: Aviso Prévio Trabalhado | D46: 0.0147 | E46: 106.4277475
A47: E | B47: Incidência do Aviso Prévio Indenizado sobre Aviso Prévio Trabalhado | D47: 0.0054 | E47: =D47*$E$12 -> 39.09590724
A48: F | B48: Multa do FGTS do Aviso Prévio Trabalhado | D48: 0.05 | E48: 361.9991411
A49: TOTAL - Grupo D: | D49: =SUM(D43:D48) -> 0.1044 | E49: =SUM(E43:E48) -> 755.8542066
A51: 4.5 | B51: GRUPO "E" - Afastamento Maternidade | D51: % | E51: Valor (R$)
A52: A | B52: Afastamento maternidade | D52: 0.0075 | E52: =D52*$E$12 -> 54.29987116
A53: B | B53: Incidência do Submódulo 4.1 sobre afastamanto maternidade | D53: 0.0028 | E53: =D53*$E$12 -> 20.2719519
A54: TOTAL - Grupo E: | D54: =SUM(D52:D53) -> 0.0103 | E54: =SUM(E52:E53) -> 74.57182306
A58: 4 | B58: (QUADRO-RESUMO) MÓDULO 4: ENCARGOS SOCIAIS E TRABALHISTAS | D58: % | E58: Valor (R$)
A59: 4.1 | B59: GRUPO "A" | D59: =D25 -> 0.368 | E59: =E25 -> 2664.313678
A60: 4.2 | B60: GRUPO "B" | D60: =D35 -> 0.2531 | E60: =E35 -> 1832.439652
A61: 4.3 | B61: GRUPO "C" | D61: =D40 -> 0.114 | E61: =E40 -> 825.3580416
A62: 4.4 | B62: GRUPO "D" | D62: =D49 -> 0.1044 | E62: =E49 -> 755.8542066
A63: 4.5 | B63: GRUPO "E" | D63: =D54 -> 0.0103 | E63: =E54 -> 74.57182306
A64: TOTAL - Encargos Sociais e Trabalhistas: | D64: =SUM(D59:D63) -> 0.8498 | E64: =SUM(E59:E63) -> 6152.537402

Sheet Encargos Sociais Ceará
A5: Prestação de serviços continuados de vigilância armada, visando à segurança das obras civis, das instalações dos canteiros de obras e dos equipamentos hidromecânicos e eletromecânicos do PISF – projeto de integração do rio São Francisco com as bacias hidrográficas do nordeste setentrional, com área de atuação no estado de Pernambuco
A10: MÓDULO 4: ENCARGOS SOCIAIS E TRABALHISTAS
A12: Total da Remuneração Mensal - Total (01 Posto): | E12: ='Posto Fixo 24h - Ceará'!E48 -> 8759.047342
A14: MÓDULO 4: ENCARGOS SOCIAIS E TRABALHISTAS
A15: NOTA: Os percentuais dos encargos previdenciários e FGTS, a serem preenchidos na coluna %, são aqueles estabelecidos pela legislação vigente, incidentes sobre a remuneração
A16: 4.1 | B16: GRUPO "A" - Encargos Previdenciários e FGTS | D16: % | E16: Valor (R$)
A17: A | B17: INSS (Art. 22 inciso I da Lei 8.212/91) | D17: 0.2 | E17: =D17*$E$12 -> 1751.809468
A18: B | B18: FGTS (Art. 15 da Lei 8030/90 art. 7° inciso III CF/88) | D18: 0.08 | E18: =D18*$E$12 -> 700.7237874
A19: C | B19: SAT | D19: 0.03 | E19: =D19*$E$12 -> 262.7714203
A20: D | B20: Salário Educação (Art. 3° inciso I Decreto 87.043/) | D20: 0.025 | E20: 218.9761835
A21: E | B21: SESC/SESI (Art. 3° da Lei 8036/90) | D21: 0.015 | E21: 131.3857101
A22: F | B22: SENAC/SENAI (Decreto 2.318/86) | D22: 0.01 | E22: 87.59047342
A23: G | B23: SEBRAE (Art. 8° Lei 8029/90 e 8154 de 28/12/90) | D23: 0.006 | E23: 52.55428405
A24: H | B24: INCRA (Lei 7787 de 30/06/890e DL 1146/70) | D24: 0.002 | E24: 17.51809468
A25: TOTAL - Grupo A: | D25: =SUM(D17:D24) -> 0.368 | E25: =SUM(E17:E24) -> 3223.329422
A27: 4.2 | B27: GRUPO "B" - Custo de Reposição do Profissional Ausente | D27: % | E27: Valor (R$)
A28: A | B28: Férias | D28: 0.0947 | E28: =D28*$E$12 -> 829.4817833
A29: B | B29: Auxílio Doença | D29: 0.0331 | E29: 289.924467
A30: C | B30: Acidente de Trabalho | D30: 0.0014 | E30: 12.26266628
A31: D | B31: Auxílio Paternidade | D31: 0.0003 | E31: 2.627714203
A32: E | B32: Faltas Legais | D32: 0.006 | E32: 52.55428405
A33: F | B33: Reciclegem Art. 91 Decreto 992MJ + Treinamento NR% | D33: =1.26%+0.32% -> 0.0158 | E33: 138.392948
A34: G | B34: Aviso Prévio Trabalhado | D34: 0.0002 | E34: =D34*$E$12 -> 1.751809468
A35: TOTAL - Grupo B: | D35: =SUM(D28:D34) -> 0.1515 | E35: =SUM(E28:E34) -> 1326.995672
A37: 4.3 | B37: GRUPO "C" - 13º Salário e Adicional de Férias | D37: % | E37: Valor (R$)
A38: A | B38: 1/3 Férias Constitucional | D38: 0.0316 | E38: =D38*$E$12 -> 276.785896
A39: B | B39: 13º Salário | D39: 0.0947 | E39: =D39*$E$12 -> 829.4817833
A40: TOTAL - Grupo C: | D40: =SUM(D38:D39) -> 0.1263 | E40: =SUM(E38:E39) -> 1106.267679
A42: 4.4 | B42: GRUPO "D" - Provisão para Rescisão | D42: % | E42: Valor (R$)
A43: A | B43: Aviso Prévio Indenizado | D43: 0.0227 | E43: =D43*$E$12 -> 198.8303747
A44: B | B44: Reflexos no Aviso Prévio Indenizado | D44: 0.0044 | E44: =D44*$E$12 -> 38.5398083
A45: C | B45: Multa do FGTS do Aviso Prévio Trabalhado | D45: 0.0338 | E45: 296.0558002
A46: D | B46: Contribuição Social Art. 1º Lei 110/91 | D46: 0.0109 | E46: 95.47361603
A47: E | B47: Indenização Adicional | D47: 0.0025 | E47: 21.89761835
A48: TOTAL - Grupo D: | D48: =SUM(D43:D47) -> 0.0743 | E48: =SUM(E43:E47) -> 650.7972175
A50: 4.5 | B50: GRUPO "E" | D50: % | E50: Valor (R$)
A51: A | B51: FGTS S/ Aviso Prévio Indenizado | D51: 0.0018 | E51: =D51*$E$12 -> 15.76628522
A52: B | B52: Incidências sobre o Salário Maternidde | D52: 0.0006 | E52: =D52*$E$12 -> 5.255428405
A53: C | B53: Incidências sobre o 13º Salário Av. Prévio | D53: 0.0006 | E53: =D53*$E$12 -> 5.255428405
A54: D | B54: Abono Pecuniário | D54: 0 | E54: 0
A55: TOTAL - Grupo E: | D55: =SUM(D51:D54) -> 0.003 | E55: =SUM(E51:E54) -> 26.27714203
A57: 4.6 | B57: GRUPO "F" | D57: % | E57: Valor (R$)
A58: A | B58: Incidência do Grupo "A" s/ o Grupo "B" | D58: 0.1006 | E58: =D58*$E$12 -> 881.1601626
A59: TOTAL - Grupo E: | D59: =SUM(D58) -> 0.1006 | E59: =SUM(E58) -> 881.1601626
A62: 4 | B62: (QUADRO-RESUMO) MÓDULO 4: ENCARGOS SOCIAIS E TRABALHISTAS | D62: % | E62: Valor (R$)
A63: 4.1 | B63: GRUPO "A" | D63: =D25 -> 0.368 | E63: =E25 -> 3223.329422
A64: 4.2 | B64: GRUPO "B" | D64: =D35 -> 0.1515 | E64: =E35 -> 1326.995672
A65: 4.3 | B65: GRUPO "C" | D65: =D40 -> 0.1263 | E65: =E40 -> 1106.267679
A66: 4.4 | B66: GRUPO "D" | D66: =D48 -> 0.0743 | E66: =E48 -> 650.7972175
A67: 4.5 | B67: GRUPO "E" | D67: =D55 -> 0.003 | E67: =E55 -> 26.27714203
A68: 4.6 | B68: GRUPO "F" | D68: =D59 -> 0.1006 | E68: =E59 -> 881.1601626
A69: TOTAL - Encargos Sociais e Trabalhistas: | D69: =SUM(D63:D67) -> 0.7231 | E69: =SUM(E63:E68) -> 7214.827296

Sheet Encargos Sociais Pernambuco
A5: Prestação de serviços continuados de vigilância armada, visando à segurança das obras civis, das instalações dos canteiros de obras e dos equipamentos hidromecânicos e eletromecânicos do PISF – projeto de integração do rio São Francisco com as bacias hidrográficas do nordeste setentrional, com área de atuação no estado de Pernambuco
A10: MÓDULO 4: ENCARGOS SOCIAIS E TRABALHISTAS
A12: Total da Remuneração Mensal - Total (01 Posto): | E12: ='Posto Fixo 24h - Pernambuco'!E49 -> 8055.41196
A14: MÓDULO 4: ENCARGOS SOCIAIS E TRABALHISTAS
A15: NOTA: Os percentuais dos encargos previdenciários e FGTS, a serem preenchidos na coluna %, são aqueles estabelecidos pela legislação vigente, incidentes sobre a remuneração
A16: 4.1 | B16: GRUPO "A" | D16: % | E16: Valor (R$)
A17: A | B17: INSS (Art. 22 inciso I da Lei 8.212/91) | D17: 0.2 | E17: =D17*$E12 -> 1611.082392
A18: B | B18: FGTS (Art. 15 da Lei 8030/90 art. 7° inciso III CF/88) | D18: 0.08 | E18: =D18*$E$17 -> 128.8865914
A19: C | B19: Riscos Ambientais do Trabalho - RAT x FAP - (Decreto 3.048/1999, Anexo V e Decreto 6.957/2009) | D19: 0.0374 | E19: 60.25448146
A20: D | B20: Salário Educação (Art. 3° inciso I Decreto 87.043/) | D20: 0.025 | E20: 40.2770598
A21: E | B21: SESC/SESI (Art. 3° da Lei 8036/90) | D21: 0.015 | E21: 24.16623588
A22: F | B22: SENAC/SENAI (Decreto 2.318/86) | D22: 0.01 | E22: 16.11082392
A23: G | B23: SEBRAE (Art. 8° Lei 8029/90 e 8154 de 28/12/90) | D23: 0.006 | E23: 9.666494352
A24: H | B24: INCRA (Lei 7787 de 30/06/890e DL 1146/70) | D24: 0.002 | E24: 3.222164784
A25: TOTAL - Grupo A: | D25: =SUM(D17:D24) -> 0.3754 | E25: =SUM(E17:E24) -> 1893.666244
A27: 4.2 | B27: GRUPO "B" | D27: % | E27: Valor (R$)
A28: A | B28: Férias e Um Terço Constitucional | D28: 0.1111 | E28: =D28*$E23 -> 1.073947522
A29: B | B29: Auxílio Doença | D29: 0.0166 | E29: =D29*$E$17 -> 26.74396771
A30: C | B30: Licença Maternidade/Paternidade | D30: 0.0008 | E30: 1.288865914
A31: D | B31: Faltas Legais | D31: 0.0117 | E31: 18.84966399
A32: E | B32: Acidente de Trabalho | D32: 0.0027 | E32: 4.349922458
A33: F | B33: Aviso Prévio Trabalhado | D33: 0.0002 | E33: 0.3222164784
A34: G | B34: 13º Salário | D34: 0.0833 | E34: 134.2031633
A35: TOTAL - Grupo B: | D35: =SUM(D28:D34) -> 0.2264 | E35: =SUM(E28:E34) -> 186.8317473
A37: 4.3 | B37: GRUPO "C" | D37: % | E37: Valor (R$)
A38: A | B38: Aviso Prévio Indenizado | D38: 0.0403 | E38: =D38*$E33 -> 0.01298532408
A39: B | B39: Indenização Adicional | D39: 0.004 | E39: =D39*$E$17 -> 6.444329568
A40: C | B40: Indenização (rescisões sem justa causa) - Multa FGTS + 10% LC nº 110/01 | D40: 0.0248 | E40: =D40*$E$17 -> 39.95484332
A41: TOTAL - Grupo C: | D41: =SUM(D38:D40) -> 0.0691 | E41: =SUM(E38:E40) -> 46.41215821
A43: 4.4 | B43: GRUPO "D" | D43: % | E43: Valor (R$)
A44: A | B44: Incidência do grupo "A" sobre o grupo "B" | D44: =D25*D35 -> 0.08499056 | E44: =D44*$E39 -> 0.5477071788
A45: TOTAL - Grupo D: | D45: =SUM(D44:D44) -> 0.08499056 | E45: =SUM(E44:E44) -> 0.5477071788
A47: 4 | B47: (QUADRO-RESUMO) MÓDULO 4: ENCARGOS SOCIAIS E TRABALHISTAS | D47: % | E47: Valor (R$)
A48: 4.1 | B48: GRUPO "A" | D48: =D25 -> 0.3754 | E48: =E25 -> 1893.666244
A49: 4.2 | B49: GRUPO "B" | D49: =D35 -> 0.2264 | E49: =E35 -> 186.8317473
A50: 4.3 | B50: GRUPO "C" | D50: =D41 -> 0.0691 | E50: =E41 -> 46.41215821
A51: 4.4 | B51: GRUPO "D" | D51: =D45 -> 0.08499056 | E51: =E45 -> 0.5477071788
A52: TOTAL - Encargos Sociais e Trabalhistas: | D52: =SUM(D48:D51) -> 0.75589056 | E52: =SUM(E48:E51) -> 2127.457856
